bitfinex-derivatives/quotes_SOLF0:USTF0_20250310
["timestamp","ask_amount","ask_price","bid_price","bid_amount"]
[1741650199179,1.17e-06,119.49,119.48,111.51098612]
[1741650199577,1.17e-06,119.49,119.48,109.997]
[1741650201382,1.17e-06,119.49,119.48,111.51072726]
[1741650201876,1.17e-06,119.49,119.48,111.51086228]
[1741650203483,1.17e-06,119.49,119.48,109.997]
[1741650203783,1.17e-06,119.49,119.48,111.51081329]
[1741650203978,1.17e-06,119.49,119.48,109.997]
[1741650204178,1.17e-06,119.49,119.48,111.5113709]
[1741650204382,1.17e-06,119.49,119.48,107.2679709]
[1741650204578,1.17e-06,119.49,119.48,105.7536]
[1741650205077,1.17e-06,119.49,119.47,0.06395733]
[1741650205479,1.17e-06,119.49,119.48,8.3736]
[1741650205680,1.17e-06,119.49,119.47,0.06395733]
[1741650206384,4.32890117,119.49,119.47,0.06395733]
[1741650206681,36.3209161,119.48,119.43,43.7568]
[1741650206884,36.3209161,119.48,119.43,35.38]
[1741650207184,8.375,119.46,119.42,43.7573]
[1741650207383,8.375,119.46,119.42,35.38]
[1741650207886,0.06398131,119.45,119.43,0.053357]
[1741650208087,0.06398131,119.45,119.43,62.053357]
[1741650208386,0.06398131,119.45,119.44,8.3764]
[1741650209087,2.1742,119.49,119.47,8.374]
[1741650209280,24.76697128,119.51,119.46,35.38]
[1741650209681,24.76697128,119.51,119.48,8.3731]
[1741650209883,24.76697128,119.51,119.46,35.38]
[1741650210284,0.06310071,119.5,119.47,8.42904323]
[1741650211384,8.43530071,119.5,119.47,0.05504323]
[1741650212188,8.3729,119.49,119.47,0.05504323]
[1741650212687,0.06310071,119.5,119.47,0.05504323]
[1741650213387,8.3736,119.48,119.47,0.05504323]
[1741650215289,8.3755,119.46,119.43,70.3768]
[1741650215488,8.3755,119.46,119.43,105.7568]
[1741650215885,36.34064233,119.47,119.4,2.0387]
[1741650216089,36.34064233,119.45,119.41,8.378]
[1741650216390,0.06277352,119.44,119.42,0.05591784]
[1741650216596,8.43957352,119.44,119.42,0.05591784]
[1741650217090,0.06277352,119.44,119.42,0.05591784]
[1741650217280,8.43917352,119.44,119.42,0.05591784]
[1741650218590,0.06277352,119.44,119.42,0.05591784]
[1741650218990,0.06277352,119.44,119.42,70.43331784]
[1741650219594,0.06277352,119.44,119.42,62.05591784]
[1741650219891,0.06277352,119.44,119.43,8.3771]
[1741650222894,7.352e-05,119.44,119.43,8.3771]
[1741650223296,7.352e-05,119.44,119.43,18.56240904]
[1741650223595,7.352e-05,119.44,119.43,16.04240904]
[1741650225100,7.352e-05,119.44,119.43,14.5255]
[1741650225395,7.352e-05,119.44,119.43,16.04215461]
[1741650225896,7.352e-05,119.44,119.43,18.56215461]
[1741650226490,7.352e-05,119.44,119.43,16.04215461]
[1741650227890,7.352e-05,119.44,119.43,18.56215461]
[1741650228195,38.54904233,119.53,119.43,10.18505461]
[1741650228397,36.34064233,119.51,119.44,1.51665461]
[1741650228596,8.3726,119.5,119.45,35.38]
[1741650228898,36.34064233,119.49,119.43,35.38]
[1741650229198,0.05792233,119.47,119.45,0.06375717]
[1741650229900,0.05792233,119.47,119.45,8.43875717]
[1741650230496,8.43222233,119.47,119.45,0.06375717]
[1741650230900,0.05792233,119.47,119.45,8.43935717]
[1741650231502,0.05792233,119.47,119.46,8.375]
[1741650232301,0.05792233,119.47,119.46,43.735]
[1741650233397,2.233e-05,119.47,119.46,43.735]
[1741650235305,2.233e-05,119.47,119.46,80.07564233]
[1741650235501,2.1102,119.56,119.46,75.7342543]
[1741650235703,2.1102,119.56,119.48,36.34064233]
[1741650235905,2.1102,119.56,119.49,35.36]
[1741650236110,2.1102,119.56,119.54,8.3693]
[1741650236311,2.1486,119.57,119.52,35.36]
[1741650236610,0.05321307,119.56,119.53,0.05455669]
[1741650237205,81.43984233,119.62,119.53,0.05455669]
[1741650237206,46.07984233,119.62,119.54,36.34064233]
[1741650237510,46.07984233,119.62,119.55,37.4164]
[1741650238307,0.05690068,119.6,119.58,8.3661]
[1741650238503,0.05690068,119.6,119.58,43.7261]
[1741650238708,0.05690068,119.6,119.59,62.0]
[1741650240715,0.05690068,119.6,119.57,0.06260844]
[1741650240901,0.05690068,119.6,119.59,8.3659]
[1741650241110,0.05690068,119.6,119.57,0.06260844]
[1741650241712,0.05690068,119.6,119.58,35.34]
[1741650242112,0.05690068,119.6,119.59,8.3659]
[1741650242312,0.05690068,119.6,119.58,35.34]
[1741650242612,8.42210068,119.6,119.57,0.06260844]
[1741650242809,0.05690068,119.6,119.57,0.06260844]
[1741650243211,8.3664,119.59,119.57,0.06260844]
[1741650243414,0.05690068,119.6,119.57,0.06260844]
[1741650245113,0.05690068,119.6,119.59,8.3659]
[1741650246111,0.05690068,119.6,119.58,8.3662]
[1741650246317,0.05690068,119.6,119.57,0.06260844]
[1741650247217,36.34064233,119.59,119.57,0.06260844]
[1741650247417,8.3666,119.58,119.57,0.06260844]
[1741650247613,38.48384233,119.59,119.57,0.06260844]
[1741650249519,0.05690068,119.6,119.57,0.06260844]
[1741650249722,0.05690068,119.6,119.58,8.3661]
[1741650250315,0.05690068,119.6,119.58,62.0]
[1741650250519,0.05690068,119.6,119.59,8.3659]
[1741650250921,36.39754301,119.6,119.57,0.06260844]
[1741650251416,8.3666,119.58,119.57,0.06260844]
[1741650252015,36.34064233,119.58,119.53,35.32]
[1741650252218,44.70764233,119.58,119.53,35.32]
[1741650252619,44.70764233,119.58,119.54,8.3689]
[1741650253123,0.05974472,119.57,119.55,0.06319814]
[1741650253919,0.05974472,119.57,119.56,62.0]
[1741650254121,0.05974472,119.57,119.56,97.32]
[1741650254323,0.05974472,119.57,119.56,105.688]
[1741650257525,44.70544233,119.61,119.57,8.3667]
[1741650257725,8.3648,119.61,119.56,97.32]
[1741650258124,8.3648,119.61,119.57,8.3666]
[1741650258624,8.3648,119.61,119.58,8.3662]
[1741650258928,0.06305342,119.6,119.58,8.42782828]
[1741650259128,0.06305342,119.6,119.58,0.06162828]
[1741650259328,8.42865342,119.6,119.58,0.06162828]
[1741650259829,8.3659,119.59,119.58,0.06162828]
[1741650260022,0.06305342,119.6,119.58,0.06162828]
[1741650261329,0.06305342,119.6,119.59,8.3659]
[1741650261519,0.06305342,119.6,119.58,0.06162828]
[1741650261923,0.06305342,119.6,119.58,8.42812828]
[1741650262321,8.3659,119.59,119.58,0.06162828]
[1741650262927,22.73810353,119.6,119.53,8.3694]
[1741650263229,22.67505011,119.57,119.53,8.3694]
[1741650263428,22.67505011,119.57,119.52,97.3]
[1741650263429,22.67505011,119.57,119.55,8.3686]
[1741650264231,0.05879019,119.57,119.55,35.36272619]
[1741650264728,0.05879019,119.57,119.55,0.06272619]
[1741650265224,8.42639019,119.57,119.55,0.06272619]
[1741650265426,0.05879019,119.57,119.55,0.06272619]
[1741650266020,8.368,119.56,119.55,0.06272619]
[1741650266330,36.286092,119.56,119.51,35.3]
[1741650266527,38.346692,119.56,119.47,2.1621]
[1741650266830,38.346692,119.56,119.49,35.3]
[1741650267026,38.346692,119.56,119.46,36.286092]
[1741650267327,38.346692,119.56,119.49,35.3]
[1741650267527,0.05422352,119.53,119.51,0.05459735]
[1741650267931,8.3708,119.52,119.51,0.05459735]
[1741650270027,0.05422352,119.53,119.51,0.05459735]
[1741650270532,0.05422352,119.53,119.52,43.6708]
[1741650273132,0.05422352,119.53,119.52,35.3]
[1741650273335,0.05422352,119.53,119.52,97.3]
[1741650273537,0.05422352,119.53,119.51,35.35459735]
[1741650274038,0.05422352,119.53,119.52,8.3708]
[1741650275436,44.652992,119.58,119.51,35.35459735]
[1741650275639,44.652992,119.58,119.55,8.3683]
[1741650276447,36.286092,119.62,119.54,35.3]
[1741650276647,0.05865056,119.58,119.55,35.35467299]
[1741650277143,0.05865056,119.58,119.57,8.3673]
[1741650279545,5.056e-05,119.58,119.57,8.3673]
[1741650279939,5.056e-05,119.58,119.57,70.3673]
[1741650280643,5.056e-05,119.58,119.56,8.3677]
[1741650280849,5.056e-05,119.58,119.55,35.35467299]
[1741650282050,5.056e-05,119.58,119.57,8.3673]
[1741650283554,5.056e-05,119.58,119.57,70.3673]
[1741650285552,5.056e-05,119.58,119.57,62.0]
[1741650287450,5.056e-05,119.58,119.57,70.3673]
[1741650290260,5.056e-05,119.58,119.56,8.3677]
[1741650290459,5.056e-05,119.58,119.55,311.25467299]
[1741650290657,5.056e-05,119.58,119.55,35.33467299]
[1741650291561,5.056e-05,119.58,119.57,8.3673]
[1741650300269,5.056e-05,119.58,119.56,35.28]
[1741650301367,8.36705056,119.58,119.56,97.28]
[1741650301566,5.056e-05,119.58,119.56,97.28]
[1741650302668,5.056e-05,119.58,119.55,0.05467299]
[1741650302863,22.66398572,119.57,119.5,35.26]
[1741650303063,8.3709,119.52,119.48,278.0995]
[1741650303268,8.3709,119.52,119.49,8.3726]
[1741650304165,8.43097155,119.52,119.49,8.42606558]
[1741650304363,0.06007155,119.52,119.49,0.05346558]
[1741650305067,0.06007155,119.52,119.5,8.3717]
[1741650305268,0.06007155,119.52,119.51,35.26]
[1741650305868,0.06007155,119.52,119.49,0.05346558]
[1741650306364,22.66398572,119.51,119.49,0.05346558]
[1741650306568,22.66398572,119.51,119.45,228.35514708]
[1741650306767,22.66398572,119.48,119.45,228.35514708]
[1741650307066,22.66398572,119.48,119.42,374.0298405]
[1741650307067,22.66398572,119.46,119.42,35.26]
[1741650307265,22.66398572,119.46,119.41,99.72025883]
[1741650307659,31.03918572,119.46,119.42,0.05794774]
[1741650307863,0.06218472,119.45,119.43,8.377]
[1741650308266,0.06218472,119.45,119.42,0.05794774]
[1741650308463,0.06218472,119.45,119.43,8.3771]
[1741650308669,0.06218472,119.45,119.43,70.3771]
[1741650308964,0.06218472,119.45,119.44,8.3764]
[1741650309471,2.1423,119.5,119.43,97.26]
[1741650309673,36.35890641,119.52,119.43,97.26]
[1741650309674,36.35890641,119.52,119.43,99.3599]
[1741650309970,36.35890641,119.52,119.44,2.0018]
[1741650310169,35.26,119.53,119.44,2.0018]
[1741650310170,35.26,119.53,119.44,38.36070641]
[1741650310369,42.67140641,119.54,119.44,38.36070641]
[1741650310770,0.0540201,119.5,119.48,0.05393936]
[1741650311069,0.0540201,119.5,119.48,35.33393936]
[1741650312269,0.0540201,119.5,119.49,8.3729]
[1741650312670,2.0814,119.54,119.48,35.33393936]
[1741650313470,2.0814,119.54,119.5,8.3716]
[1741650313872,0.05668806,119.53,119.51,0.05682371]
[1741650314073,0.05668806,119.53,119.51,8.42792371]
[1741650314477,0.05668806,119.53,119.51,0.05682371]
[1741650314674,36.35890641,119.52,119.44,2.0575]
[1741650314875,36.35890641,119.5,119.43,62.0]
[1741650315075,8.3742,119.48,119.43,62.0]
[1741650315273,71.63890641,119.5,119.43,62.0]
[1741650315474,80.01130641,119.5,119.43,62.0]
[1741650315675,35.28,119.5,119.45,8.3756]
[1741650315875,0.05528028,119.48,119.45,0.06009716]
[1741650316674,8.3743,119.47,119.45,0.06009716]
[1741650316882,0.05528028,119.48,119.45,0.06009716]
[1741650317373,0.05528028,119.48,119.45,35.34009716]
[1741650318182,0.05528028,119.48,119.46,8.375]
[1741650318384,0.05528028,119.48,119.45,35.34009716]
[1741650318979,0.05528028,119.48,119.47,8.3743]
[1741650320578,0.05528028,119.48,119.45,35.34009716]
[1741650321180,36.41418669,119.48,119.45,0.06009716]
[1741650321379,2.0784,119.47,119.45,0.06009716]
[1741650321575,8.375,119.46,119.45,0.06009716]
[1741650321880,8.375,119.46,119.41,8.3783]
[1741650321881,36.35890641,119.46,119.4,35.28]
[1741650322079,36.35890641,119.46,119.39,4.2524]
[1741650322080,8.3782,119.42,119.39,8.3794]
[1741650322280,36.35890641,119.42,119.35,37.3738]
[1741650322583,36.35890641,119.42,119.37,8.3807]
[1741650322584,8.3786,119.41,119.37,8.3807]
[1741650322783,71.63890641,119.42,119.35,35.28]
[1741650322979,0.0537011,119.4,119.37,0.05328263]
[1741650323181,0.0537011,119.4,119.37,8.43438263]
[1741650323582,0.0537011,119.4,119.37,0.05328263]
[1741650323885,0.0537011,119.4,119.39,8.3799]
[1741650324683,0.0537011,119.4,119.39,70.3799]
[1741650325487,1.1e-06,119.4,119.39,70.3799]
[1741650327688,1.1e-06,119.4,119.39,71.89635364]
[1741650327884,1.1e-06,119.4,119.39,70.3799]
[1741650328285,2.0393,119.49,119.47,8.3743]
[1741650328588,2.0953,119.51,119.44,35.28]
[1741650328787,2.0953,119.51,119.47,8.3739]
[1741650329183,2.0953,119.51,119.45,35.28]
[1741650329384,0.06189475,119.5,119.49,8.3728]
[1741650330091,0.06189475,119.5,119.48,8.4340124]
[1741650330283,0.06189475,119.5,119.48,0.0607124]
[1741650330984,36.35890641,119.49,119.41,311.48]
[1741650331781,73.73420641,119.51,119.48,8.3734]
[1741650331988,73.73420641,119.51,119.44,35.28]
[1741650332285,73.79009562,119.51,119.48,0.05771015]
[1741650332485,73.79009562,119.51,119.48,8.43121015]
[1741650332790,73.79009562,119.51,119.48,0.05771015]
[1741650333192,73.79009562,119.51,119.48,8.43111015]
[1741650333584,73.79009562,119.51,119.48,0.05771015]
[1741650333790,76.31009562,119.51,119.41,35.26]
[1741650333990,36.35890641,119.47,119.41,35.26]
[1741650334291,36.35890641,119.47,119.4,35.26]
[1741650334492,35.26,119.48,119.4,35.26]
[1741650334789,35.26,119.48,119.4,71.61890641]
[1741650334993,0.05641305,119.45,119.43,0.05502904]
[1741650335291,0.05641305,119.45,119.44,8.3764]
[1741650336590,0.05641305,119.45,119.44,70.3764]
[1741650339398,2.0953,119.51,119.49,8.3726]
[1741650339882,2.0953,119.51,119.49,8.3725]
[1741650340087,2.0953,119.51,119.46,35.26]
[1741650340488,0.0575799,119.5,119.48,8.3732]
[1741650340892,0.0575799,119.5,119.47,0.06404633]
[1741650341091,0.0575799,119.5,119.49,8.3729]
[1741650347189,0.0575799,119.5,119.47,0.06404633]
[1741650347492,8.4297799,119.5,119.47,0.06404633]
[1741650347694,0.0575799,119.5,119.47,0.06404633]
[1741650347990,36.35890641,119.49,119.39,37.4269]
[1741650348188,36.35890641,119.45,119.41,8.378]
[1741650348400,36.35890641,119.47,119.38,37.3535]
[1741650348700,2.1796,119.47,119.45,8.3752]
[1741650348894,2.1796,119.47,119.38,73.71240641]
[1741650349094,10.6089313,119.47,119.45,0.05455979]
[1741650349298,10.5542,119.47,119.41,35.26]
[1741650349495,2.24039706,119.47,119.45,0.05442011]
[1741650349897,2.24039706,119.47,119.46,8.375]
[1741650350097,0.06079706,119.47,119.46,8.375]
[1741650354001,0.06079706,119.47,119.45,8.42972011]
[1741650354305,0.06079706,119.47,119.45,0.05442011]
[1741650354604,0.06079706,119.47,119.46,70.375]
[1741650358008,8.3704,119.53,119.5,8.3716]
[1741650358910,8.3708,119.52,119.49,8.3725]
[1741650359204,0.0528953,119.53,119.5,0.05588729]
[1741650360508,8.4232953,119.53,119.5,8.42768729]
[1741650360702,0.0528953,119.53,119.5,0.05588729]
[1741650360902,36.41180171,119.53,119.5,0.05588729]
[1741650361201,0.0528953,119.53,119.5,0.05588729]
[1741650361604,8.3712,119.52,119.5,0.05588729]
[1741650362004,0.0528953,119.53,119.5,0.05588729]
[1741650362005,8.4232953,119.53,119.5,0.05588729]
[1741650362408,0.0528953,119.53,119.5,0.05588729]
[1741650362609,8.3709,119.52,119.5,0.05588729]
[1741650363004,0.0528953,119.53,119.5,0.05588729]
[1741650363815,8.3715,119.51,119.5,0.05588729]
[1741650367715,8.3715,119.51,119.42,36.35890641]
[1741650367716,38.87890641,119.51,119.4,227.35890641]
[1741650367913,8.3752,119.46,119.43,4.1033]
[1741650368216,22.73150971,119.46,119.4,37.3023]
[1741650368412,8.3776,119.43,119.4,35.22]
[1741650368612,22.73150971,119.46,119.39,91.34205883]
[1741650368613,22.73150971,119.44,119.39,91.34205883]
[1741650368819,0.0578121,119.43,119.4,0.05578452]
[1741650369518,8.378,119.42,119.4,0.05578452]
[1741650369715,0.0578121,119.43,119.4,0.05578452]
[1741650370215,0.0578121,119.43,119.4,35.29578452]
[1741650370419,0.0578121,119.43,119.42,8.3778]
[1741650370816,0.0578121,119.43,119.42,70.3778]
[1741650371015,37.2905,119.48,119.42,62.0]
[1741650371220,38.40532608,119.5,119.43,35.24]
[1741650371421,2.0405,119.5,119.43,35.24]
[1741650371621,8.3732,119.49,119.45,8.3753]
[1741650371822,2.0405,119.5,119.43,35.24]
[1741650372017,2.0405,119.5,119.43,37.2599]
[1741650372216,2.0405,119.5,119.46,8.3744]
[1741650372524,0.06179718,119.48,119.46,8.3744]
[1741650372916,0.06179718,119.48,119.45,0.05514015]
[1741650373822,8.43549718,119.48,119.45,0.05514015]
[1741650374022,0.06179718,119.48,119.45,0.05514015]
[1741650374321,71.66662326,119.48,119.45,0.05514015]
[1741650374520,35.30179718,119.48,119.45,0.05514015]
[1741650374827,0.06179718,119.48,119.45,0.05514015]
[1741650375327,8.375,119.46,119.45,0.05514015]
[1741650375714,71.64662326,119.48,119.45,0.05514015]
[1741650376317,35.28179718,119.48,119.45,0.05514015]
[1741650378029,43.65579718,119.48,119.45,8.43034015]
[1741650378226,71.64662326,119.48,119.45,0.05514015]
[1741650378428,8.3772,119.43,119.4,8.3789]
[1741650379136,37.4113,119.45,119.37,41.4736]
[1741650379638,0.06345639,119.42,119.4,8.44245358]
[1741650380134,0.06345639,119.42,119.4,0.06365358]
[1741650380335,0.06345639,119.42,119.41,8.3785]
[1741650381434,4.1996,119.47,119.44,8.3759]
[1741650381940,4.1996,119.47,119.41,62.0]
[1741650382333,4.1996,119.47,119.41,70.3783]
[1741650382532,0.06212001,119.45,119.43,0.05551951]
[1741650382928,8.43812001,119.45,119.43,0.05551951]
[1741650383136,0.06212001,119.45,119.43,0.05551951]
[1741650383634,35.28212001,119.45,119.37,6.2536]
[1741650383828,35.22,119.45,119.37,41.4736]
[1741650384034,36.36482608,119.44,119.37,2.1112]
[1741650384229,38.47982608,119.44,119.37,2.1112]
[1741650384434,8.3802,119.39,119.33,60.00143381]
[1741650384733,36.36482608,119.4,119.33,6.4642]
[1741650384930,0.05366811,119.37,119.35,0.06262383]
[1741650386134,0.05366811,119.37,119.36,8.382]
[1741650386535,8.3786,119.41,119.38,8.3802]
[1741650386735,73.69982608,119.44,119.36,62.0]
[1741650387139,8.3774,119.43,119.4,8.379]
[1741650387437,37.335,119.44,119.38,35.22]
[1741650387634,0.06051841,119.43,119.4,0.06405564]
[1741650387835,0.06051841,119.43,119.41,8.3783]
[1741650388032,0.06051841,119.43,119.4,0.06405564]
[1741650388938,8.3785,119.41,119.4,0.06405564]
[1741650390333,8.3785,119.41,119.4,5.564e-05]
[1741650390640,37.74,119.41,119.33,41.6842]
[1741650390833,35.22,119.41,119.33,41.6842]
[1741650391034,8.3802,119.39,119.33,41.6842]
[1741650391239,38.44002608,119.42,119.33,78.04902608]
[1741650391537,0.06180837,119.39,119.36,8.4403865]
[1741650391738,0.06180837,119.39,119.36,43.6803865]
[1741650391944,0.06180837,119.39,119.36,35.2989865]
[1741650392135,8.44200837,119.39,119.36,43.6803865]
[1741650392438,0.06180837,119.39,119.36,35.2989865]
[1741650393441,8.3808,119.38,119.36,97.2989865]
[1741650393739,368.49968468,119.53,119.37,36.36482608]
[1741650394043,8.3754,119.46,119.42,8.3774]
[1741650394342,36.36482608,119.5,119.41,71.60482608]
[1741650394539,8.3724,119.5,119.45,8.3753]
[1741650394935,0.06014407,119.49,119.46,0.0562824]
[1741650395340,0.06014407,119.49,119.46,8.4311824]
[1741650395742,0.06014407,119.49,119.46,0.0562824]
[1741650396845,0.06014407,119.49,119.46,8.4307824]
[1741650397144,0.06014407,119.49,119.46,0.0562824]
[1741650397539,0.06014407,119.49,119.46,62.0562824]
[1741650399244,0.06014407,119.49,119.46,70.4308824]
[1741650400344,0.06014407,119.49,119.47,8.3742]
[1741650400746,0.06014407,119.49,119.46,62.0562824]
[1741650401044,0.06014407,119.49,119.46,70.4308824]
[1741650401845,0.06014407,119.49,119.47,8.3742]
[1741650402043,0.06014407,119.49,119.46,62.0562824]
[1741650402243,8.3737,119.48,119.46,62.0562824]
[1741650402543,8.3737,119.48,119.46,0.0562824]
[1741650402745,0.06014407,119.49,119.46,0.0562824]
[1741650402944,0.06014407,119.49,119.47,8.3738]
[1741650403148,0.06014407,119.49,119.46,0.0562824]
[1741650403342,0.06014407,119.49,119.47,35.2]
[1741650403550,0.06014407,119.49,119.47,37.2135]
[1741650403847,8.3698,119.54,119.51,8.3711]
[1741650404248,71.56482608,119.56,119.48,2.086]
[1741650404450,8.37,119.54,119.5,8.3719]
[1741650404650,8.37,119.54,119.48,2.086]
[1741650404852,8.37,119.54,119.51,0.05919292]
[1741650404853,0.05631501,119.53,119.51,0.05919292]
[1741650405047,0.05631501,119.53,119.51,8.43069292]
[1741650405443,0.05631501,119.53,119.51,0.05919292]
[1741650406852,8.42671501,119.53,119.51,0.05919292]
[1741650407053,0.05631501,119.53,119.51,0.05919292]
[1741650407550,0.05631501,119.53,119.51,8.43009292]
[1741650408354,8.42641501,119.53,119.51,0.05919292]
[1741650408854,8.42641501,119.53,119.51,8.43059292]
[1741650409156,0.05631501,119.53,119.51,0.05919292]
[1741650409347,8.3708,119.52,119.51,0.05919292]
[1741650409548,0.05631501,119.53,119.51,0.05919292]
[1741650410253,0.05631501,119.53,119.51,8.43029292]
[1741650410549,0.05631501,119.53,119.51,0.05919292]
[1741650410952,0.05631501,119.53,119.52,8.3708]
[1741650411149,36.36482608,119.58,119.51,0.05919292]
[1741650411651,8.3685,119.56,119.53,8.3697]
[1741650412055,36.36482608,119.58,119.5,37.2402]
[1741650412453,8.3695,119.54,119.53,0.06132557]
[1741650414252,44.73432608,119.54,119.53,2.557e-05]
[1741650415460,79.91432608,119.54,119.53,2.557e-05]
[1741650416062,8.3715,119.51,119.5,2.0402]
[1741650416256,36.36482608,119.52,119.48,2.086]
[1741650416455,36.36482608,119.5,119.42,2.1642]
[1741650416666,36.36482608,119.48,119.42,2.1642]
[1741650416960,8.3759,119.45,119.42,2.1642]
[1741650417263,8.43708452,119.45,119.42,2.22360069]
[1741650417563,0.06118452,119.45,119.42,2.22360069]
[1741650417756,0.06118452,119.45,119.44,8.3764]
[1741650417952,8.3738,119.48,119.44,35.18]
[1741650418355,8.3738,119.48,119.44,43.5559]
[1741650418556,36.36482608,119.52,119.44,35.18]
[1741650418864,36.36482608,119.52,119.45,8.3756]
[1741650419166,8.43684084,119.49,119.47,0.05560889]
[1741650419565,8.3736,119.48,119.47,0.05560889]
[1741650420660,8.3736,119.48,119.47,8.89e-06]
[1741650420959,47.25842608,119.48,119.47,8.89e-06]
[1741650421161,8.3736,119.48,119.47,8.89e-06]
[1741650421359,0.06344084,119.49,119.47,8.89e-06]
[1741650422262,0.06344084,119.49,119.48,8.3736]
[1741650422667,0.06344084,119.49,119.48,70.3736]
[1741650423668,36.36482608,119.56,119.51,8.3709]
[1741650424360,36.36482608,119.56,119.49,35.18]
[1741650424766,0.06323267,119.54,119.49,35.18]
[1741650424965,0.06323267,119.54,119.51,0.0556243]
[1741650425361,36.42805875,119.54,119.51,0.0556243]
[1741650425567,71.60805875,119.54,119.51,2.43e-05]
[1741650427460,35.24323267,119.54,119.51,2.43e-05]
[1741650428166,71.60805875,119.54,119.51,2.43e-05]
[1741650428367,8.3708,119.52,119.51,2.43e-05]
[1741650431663,44.73562608,119.52,119.51,2.43e-05]
[1741650431863,8.3736,119.48,119.47,4.2365]
[1741650432067,36.36482608,119.5,119.43,35.18]
[1741650432369,36.36482608,119.5,119.4,4.1927]
[1741650432565,36.36482608,119.5,119.42,35.18]
[1741650432566,8.3757,119.45,119.42,35.18]
[1741650432863,36.36482608,119.5,119.42,35.23295473]
[1741650433070,0.05462417,119.45,119.41,2.0911]
[1741650433267,0.05462417,119.45,119.41,35.18]
[1741650433463,0.05462417,119.45,119.42,0.0620255]
[1741650434869,8.3771,119.43,119.42,62.0620255]
[1741650435165,8.3771,119.43,119.42,0.0620255]
[1741650435869,8.3771,119.43,119.42,2.55e-05]
[1741650436765,35.23462417,119.45,119.42,2.55e-05]
[1741650437165,36.36482608,119.44,119.42,2.55e-05]
[1741650437363,36.36482608,119.44,119.33,36.36482608]
[1741650437562,36.36482608,119.41,119.32,263.53514708]
[1741650437767,71.54482608,119.41,119.32,263.53514708]
[1741650438071,8.381,119.38,119.33,62.0]
[1741650438371,35.18,119.41,119.33,98.36482608]
[1741650438572,0.05371853,119.37,119.36,8.3816]
[1741650438869,35.18,119.45,119.35,71.54482608]
[1741650439368,35.18,119.45,119.35,35.18]
[1741650439673,8.3791,119.41,119.36,8.3814]
[1741650439971,35.18,119.45,119.36,8.3814]
[1741650440165,0.05832606,119.4,119.37,0.06070441]
[1741650440467,0.05832606,119.4,119.33,35.18]
[1741650440677,0.05832606,119.4,119.37,0.05461141]
[1741650444372,8.3806,119.38,119.37,0.05461141]
[1741650445675,0.05832606,119.4,119.37,0.05461141]
[1741650446666,71.54482608,119.39,119.37,1.141e-05]
[1741650446872,8.385,119.32,119.29,8.3866]
[1741650447074,4.3226,119.31,119.27,35.18]
[1741650447572,4.3226,119.31,119.29,8.3865]
[1741650447770,4.3226,119.31,119.27,35.18]
[1741650447974,4.38537235,119.31,119.29,0.06361683]
[1741650448574,2.0338,119.3,119.29,0.06361683]
[1741650449581,2.0338,119.3,119.29,8.45051683]
[1741650449778,2.0338,119.3,119.29,70.45051683]
[1741650451177,4.38537235,119.31,119.3,8.3862]
[1741650451372,4.38537235,119.31,119.3,43.5862]
[1741650451877,2.0412,119.37,119.3,74.08482608]
[1741650452079,8.3821,119.36,119.3,71.56482608]
[1741650452883,0.06117437,119.34,119.32,8.44556025]
[1741650453180,0.06117437,119.34,119.32,0.06116025]
[1741650453678,8.44527437,119.34,119.32,0.06116025]
[1741650453882,0.06117437,119.34,119.32,0.06116025]
[1741650455073,2.0412,119.37,119.33,35.2]
[1741650455273,2.0412,119.37,119.34,36.36482608]
[1741650455779,2.0412,119.37,119.36,8.382]
[1741650455979,2.0412,119.37,119.36,43.582]
[1741650456384,2.0412,119.37,119.36,35.2]
[1741650457085,6.3218,119.37,119.36,35.2]
[1741650458084,14.7031,119.37,119.35,0.05729232]
[1741650458888,6.3218,119.37,119.35,0.05729232]
[1741650460182,6.3218,119.37,119.35,35.25729232]
[1741650460386,6.3218,119.37,119.36,8.382]
[1741650460585,6.3218,119.37,119.35,35.25729232]
[1741650460783,6.3218,119.37,119.35,43.63929232]
[1741650460988,6.3218,119.37,119.35,35.25729232]
[1741650461791,6.3218,119.37,119.36,8.382]
[1741650465491,0.06040029,119.38,119.35,71.6221184]
[1741650465900,2.9e-07,119.38,119.37,36.36482608]
[1741650466101,2.9e-07,119.38,119.37,44.74612608]
[1741650467805,2.9e-07,119.38,119.37,8.3813]
[1741650472304,2.9e-07,119.38,119.37,31.11598753]
[1741650476503,2.9e-07,119.38,119.37,8.3813]